Cogmind - Beta 16 @@@ ROGUE MODE // 2025.12.07 @ 20:19:31 Player: AngelSpirit Result: Destroyed by CT-F0C(R) with Subdweller Shrapnel Launcher Performance ------------- Evolutions (0) 0 Regions Visited (2) 400 Robots Destroyed (35) 175 Value Destroyed (802) 802 Prototype IDs (0) 0 Alien Tech Used (0) 0 Bonus (0) 0 TOTAL SCORE: 1377 Bonus ------- None Cogmind --------- Core Integrity 0/250 Matter 245/300 Energy 250/250 System Corruption 1% Temperature Cool (0) Movement Rolling (140) Ox4 Location -10/Subcaves Parts ------- > --- POWER (1) -------- Ion Engine > --- PROPULSION (2) --- Wheel Wheel > --- UTILITY (2) ------ Huge Storage Unit Sensor Array > --- WEAPON (2) ------- Subdweller Beam Cannon Grenade Launcher > --- INVENTORY (25) --- Ion Engine Ion Engine Wheel Wheel Wheel Sensor Array Subdweller Beam Cannon Battle Rifle Grenade Launcher SUBCON Basin (Full) Peak State ------------ > --- POWER ------------ Ion Engine > --- PROPULSION ------- Wheel Subdweller Monowheel > --- UTILITY ---------- Huge Storage Unit Sensor Array > --- WEAPON ----------- Subdweller Beam Cannon Battle Rifle > --- INVENTORY -------- Ion Engine Ion Engine Wheel Wheel Wheel Wheel Sensor Array Subdweller Beam Cannon Grenade Launcher Grenade Launcher SUBCON Basin [Rating: 29] Favorites ----------- Power Ion Engine Engine Ion Engine Propulsion Wheel Wheel Wheel Utility Huge Storage Unit Device Sensor Array Storage Huge Storage Unit Protection Core Shielding Weapon Assault Rifle Energy Gun EM Pulse Gun Energy Cannon Subdweller Beam Cannon Ballistic Gun Assault Rifle Launcher Grenade Launcher Build | -11 -10 -10 ------- Run | Yrd Mat Sub Slots Evolved . | . . . Power . | . . . Propulsion . | . . . Utility . | . . . Weapon . | . . . Parts Attached 29 | 6 15 8 Power 4 | 1 1 2 Engine 4 | 1 1 2 Core . | . . . Reactor . | . . . Propulsion 7 | 2 3 2 Treads . | . . . Leg . | . . . Wheel 7 | 2 3 2 Hover . | . . . Flight . | . . . Utility 6 | 1 4 1 Device 2 | . 1 1 Storage 3 | 1 2 . Processor . | . . . Hackware . | . . . Protection 1 | . 1 . Artifact . | . . . Weapon 12 | 2 7 3 Energy Gun 1 | . 1 . Energy Cannon 1 | . . 1 Ballistic Gun 6 | 2 3 1 Ballistic Cannon . | . . . Launcher 4 | . 3 1 Special Weapon . | . . . Impact Weapon . | . . . Slashing Weapon . | . . . Piercing Weapon . | . . . Special Melee Weapon . | . . . Unidentified Prototypes . | . . . Parts Lost 6 | . 4 2 Power 2 | . 1 1 Propulsion 1 | . 1 . Utility 1 | . 1 . Weapon 2 | . 1 1 Highest Loss Streak 4 | . 4 2 To Critical Strikes . | . . . Average Backups 9 | . 8 11 Power 2 | . 3 2 Propulsion 2 | . . 4 Utility 1 | . 1 1 Weapon 2 | . 2 2 Tool/Special . | . . . Unused Backups 10 | . . 10 Power 3 | . . 3 Propulsion 4 | . . 4 Utility 2 | . . 2 Weapon 1 | . . 1 Tool/Special . | . . . Average Slot Usage (%) 91 | . 85 99 Engine 11 | . 10 13 Wheel 25 | . 24 28 Device 7 | . 1 14 Storage 14 | . 14 14 Protection 3 | . 5 . Energy Cannon 4 | . . 9 Ballistic Gun 21 | . 26 16 Launcher 1 | . 1 1 Peak Build Rating 29 | 6 8 29 Average Rating 13 | 4 6 22 On Entrance 4 | . 6 8 Avg Prop Armor Cover (%) . | . . . Naked Turns . | . . . Heaviest Build 97 | 14 90 97 Greatest Support 30 | 26 26 30 Greatest Overweight (x) 8 | . 8 4 Average Overweight (x) 3 | . 4 3 Largest Inventory Capacity 25 | 8 25 25 Average Capacity 23 | 7 23 25 Most Carried 25 | 1 17 25 Average Carried 14 | . 8 22 Final Capacity 25 | 8 25 25 Final Carried 24 | 1 17 24 Class Distribution -------------------- 100% | Mutant Dominant Class ---------------- Mutant | -10/Materials Mutant | -10/Subcaves Resources | -11 -10 -10 ----------- Run | Yrd Mat Sub Matter Collected 1065 | 202 540 323 Remotely . | . . . Salvage Created 870 | . 618 252 Parts 67 | . 55 12 Haulers Intercepted 2 | . 2 . Recyclers Shooed 1 | . 1 . Parts Field Recycled . | . . . Retrieved Matter . | . . . Parts Self-Destructed 15 | . . 15 Prevented . | . . . Parts Restored . | . . . Kills | -11 -10 -10 ------- Run | Yrd Mat Sub Combat Hostiles Destroyed 21 | . 14 7 Guns 13 | . 9 4 Cannons 1 | . . 1 AOE 7 | . 5 2 Classes Destroyed 9 | . 7 2 Worker 4 | . 4 . Builder 3 | . 3 . Hauler 2 | . 2 . Operator 2 | . 2 . Watcher 3 | . 3 . Swarmer 4 | . 3 1 Grunt 12 | . 11 1 Sentry 1 | . . 1 Subdweller 4 | . . 4 Best Kill Streak 9 | . 9 3 Combat Bots Only 6 | . 6 3 Max Kills in Single Turn 2 | . 2 1 Gunslinging . | . . . Exploded 1 | . 1 1 Melee . | . . . Uniques/NPCs Destroyed . | . . . Combat | -11 -10 -10 -------- Run | Yrd Mat Sub Hostile Shots Fired 80 | . 53 27 Missed 24 | . 20 4 Hits 56 | . 33 23 Projectile 56 | . 33 23 AOE 1 | . . 1 Critical Strikes 1 | . . 1 Damage Taken 999 | . 502 497 Core 262 | . 107 155 Absorbed by Shields . | . . . Redirected to Shielding 2 | . 2 . Core Remaining (%) 100 | 100 . . Volleys Fired 88 | . 56 32 Largest 2 | . 2 2 Hottest 110 | . 50 110 Shots Fired 152 | . 104 48 Gun 120 | . 89 31 Cannon 12 | . . 12 Launcher 20 | . 15 5 Special . | . . . Kinetic 118 | . 87 31 Thermal 12 | . . 12 Explosive 20 | . 15 5 Electromagnetic 2 | . 2 . Robot Hit Streak 20 | . 9 20 Robot Miss Streak 4 | . 2 4 Penetration Max . | . . . Secondary Targets 2 | . 1 1 Max Gunslinging Chain 1 | . 1 1 Shots Hit Robots 93 | . 63 30 Core Hits 54 | . 44 10 Critical Kills . | . . . Critical Parts Destroyed . | . . . Critical Strikes . | . . . Melee Attacks . | . . . Impact . | . . . Slashing . | . . . Piercing . | . . . Sneak Attacks . | . . . Combat Hostiles . | . . . Follow-up Attacks . | . . . Damage Inflicted 2122 | . 1557 565 Guns 992 | . 709 283 Cannons 112 | . . 112 Explosions 1018 | . 848 170 Melee . | . . . Ramming . | . . . Kinetic 992 | . 709 283 Thermal 112 | . . 112 Explosive 1018 | . 848 170 Electromagnetic . | . . . Impact . | . . . Slashing . | . . . Piercing . | . . . Highest Corruption 1 | . 1 1 Average Corruption 1 | . 1 1 Corruption Purged . | . . . Corruption Blocked . | . . . Effects 16 | . 7 9 Message Errors 6 | . 3 3 Matter Fused 2 | . . 2 Heat Flow Errors 1 | . . 1 Energy Discharges 4 | . 1 3 Data Loss (minor) 1 | . 1 . Data Loss (major) 1 | . 1 . Misfires 1 | . 1 . Overload Shots . | . . . Overflow Damage 19 | . 19 . Projectiles . | . . . Explosions 19 | . 19 . Melee . | . . . Knockbacks . | . . . Impact . | . . . Kinetic . | . . . Secondary . | . . . Self-Inflicted Damage 133 | . 133 . Shots 7 | . 7 . Rammed . | . . . Targets Rammed . | . . . Kicked . | . . . Crushed . | . . . Highest Temperature 203 | . 34 203 Average Temperature 32 | . 12 88 Received Heat Transfer 357 | . 198 159 Siege Activations . | . . . Martial Activations . | . . . Shielding Activations . | . . . Robots Disrupted . | . . . Combat Hostiles . | . . . Robots Corrupted . | . . . Combat Hostiles . | . . . Parts Fried . | . . . Impact Corruptions . | . . . Robots Melted . | . . . Combat Hostiles . | . . . Parts Melted 1 | . . 1 Heat Transferred 148 | . . 148 Parts Sabotaged . | . . . Parts Stolen . | . . . Parts Stripped . | . . . Power Chain Reactions . | . . . Alert | -11 -10 -10 ------- Run | Yrd Mat Sub Maximum Alert Level 1 | . 1 . Low Security (%) 93 | 100 93 . Level 1 6 | . 6 . Level 2 . | . . . Level 3 . | . . . Level 4 . | . . . Level 5 . | . . . High Security . | . . . Max Security . | . . . Peak Influence 230 | . 230 . Initial . | . . . Average 117 | . 121 . Influence Increases 623 | . 563 60 Destroy 0b10 Robot/C 340 | . 280 60 Destroy 0b10 Robot/NC 70 | . 70 . Destroy Leader 70 | . 70 . Successful Hack 34 | . 34 . Disable Machine 30 | . 30 . Destroy Structure 64 | . 64 . Lose Combat Pursuer 15 | . 15 . Influence Decreases 623 | . 437 186 Entered New Map 62 | . . 62 Time Decay 521 | . 397 124 Lost Part 40 | . 40 . Squads Dispatched 3 | . 3 . Investigation 1 | . 1 . Extermination . | . . . Reinforcement 2 | . 2 . Assault . | . . . Garrison . | . . . Intercept . | . . . Searches Triggered . | . . . Construction Impeded . | . . . Haulers Reinforced . | . . . Active Scanning Responses . | . . . Cargo Convoy Interrupts . | . . . Stealth | -11 -10 -10 --------- Run | Yrd Mat Sub Distress Signals 1 | . 1 . Communications Jammed . | . . . Distress Signals . | . . . Times Spotted 29 | . 21 8 Peak Tracking Total 7 | . 7 3 Tactical Retreats 1 | . 1 . Traps | -11 -10 -10 ------- Run | Yrd Mat Sub Traps Triggered 3 | . 3 . Indirectly . | . . . Trap Hack Attempts . | . . . Triggered . | . . . Disarmed . | . . . Reprogrammed . | . . . Reused . | . . . Traps Extracted . | . . . Installed . | . . . Triggered . | . . . Machines | -11 -10 -10 ---------- Run | Yrd Mat Sub Machines Disabled 2 | . 2 . Max in Single Turn 1 | . 1 . Machines Repaired . | . . . Machines Dismantled . | . . . Machines Sabotaged . | . . . Overloaded Fab Kills . | . . . Hacking | -11 -10 -10 --------- Run | Yrd Mat Sub Machines Accessed 8 | . 6 2 Terminals 5 | . 5 . Fabricators . | . . . Repair Stations . | . . . Recycling Units 1 | . 1 . Scanalyzers . | . . . Garrison Access . | . . . Total Hacks 18 | . 16 2 Successful 12 | . 10 2 Failed 6 | . 6 . Catastrophic 1 | . 1 . Database Lockouts . | . . . Manual 9 | . 9 . Terminals 14 | . 14 . Fabricators . | . . . Repair Stations . | . . . Recycling Units 2 | . 2 . Scanalyzers . | . . . Garrison Access . | . . . Terminal Hacks 9 | . 7 2 Robot Analysis 4 | . 4 . Open Door 1 | . . 1 Locate Traps 1 | . 1 . Registered Components 1 | . 1 . Zone Layout 1 | . 1 . Release Object 1 | . . 1 Fabricator Hacks . | . . . Repair Station Hacks . | . . . Recycling Unit Hacks 2 | . 2 . Report Inventory 1 | . 1 . Retrieve Components 1 | . 1 . Scanalyzer . | . . . Garrison Access Hacks . | . . . Unauthorized Hacks 1 | . 1 . Terminals 1 | . 1 . Botnet 1 | . 1 . Fabricators . | . . . Repair Stations . | . . . Recycling Units . | . . . Scanalyzers . | . . . Garrison Access . | . . . Data Cores Recovered . | . . . Used . | . . . Hacking Detections 6 | . 6 . Full Trace Events . | . . . Feedback Events . | . . . Feedback Blocked . | . . . Robot Schematics Acquired . | . . . Robots Built . | . . . Authchips . | . . . Time . | . . . Total Robot Build Rating . | . . . Part Schematics Acquired . | . . . Parts Built . | . . . Authchips . | . . . Time . | . . . Total Part Build Rating . | . . . Part Studies Acquired . | . . . Parts Repaired . | . . . Time . | . . . Parts Recycled . | . . . Recycled Matter . | . . . Retrieved Matter . | . . . Retrieved Components 2 | . 2 . Parts Scanalyzed . | . . . Part Schematics Acquired . | . . . Parts Damaged . | . . . Bothacking | -11 -10 -10 ------------ Run | Yrd Mat Sub Used RIF Installer . | . . . Robots Hacked . | . . . Non-combat . | . . . Combat . | . . . Robot Hacks Applied . | . . . Relay Couplers Released . | . . . Fabnet Peak Effective % . | . . . Robots Rewired . | . . . Allies Hacked . | . . . Hacks Repelled . | . . . Allies | -11 -10 -10 -------- Run | Yrd Mat Sub Total Allies . | . . . Largest Group . | . . . Highest-Rated Group . | . . . Highest-Rated Ally . | . . . Total Orders . | . . . Ally Attacks . | . . . Total Damage . | . . . Kills . | . . . Allies Corrupted . | . . . Allies Melted . | . . . Intel | -11 -10 -10 ------- Run | Yrd Mat Sub Active Infowar (turns) 1088 | . 122 966 Sensors 966 | . . 966 Structural 122 | . 122 . Robot Analysis Total 4 | . 4 . Derelict Logs Recovered 1 | . . 1 Drone Launches . | . . . Drone Recoveries . | . . . Exploration | -11 -10 -10 ------------- Run | Yrd Mat Sub Turns Passed 2110 | 39 1105 966 Spaces Moved 1215 | 34 550 631 Core 1 | 1 . . Treads . | . . . Legs . | . . . Wheels 1214 | 33 550 631 Hover . | . . . Flight . | . . . Fastest Speed 50 | 50 90 131 Average Speed 137 | 86 145 133 Slowest Speed 200 | 90 200 140 Overloaded Moves . | . . . Propulsion Burnouts . | . . . Robots Hopped . | . . . Potential Cave-ins . | . . . Cave-ins Triggered . | . . . Exploration Rate (%) 43 | 4 84 42 Regions Visited 2 Branch Regions 1 Pre-discovered Areas 2 | . . 2 Known Exits Taken . | . . . Unknown Exits Taken 2 | 1 1 . Scrap Searched . | . . . Spaces Dug . | . . . Terrain Destroyed 105 | . 85 20 Melee . | . . . Projectile . | . . . AOE 105 | . 85 20 Terrain Rammed . | . . . Walls Destroyed . | . . . Machines Disabled . | . . . Actions | -11 -10 -10 --------- Run | Yrd Mat Sub Total 1488 | 40 742 706 Wait 110 | . 91 19 Move 1213 | 33 549 631 Hop . | . . . Pick Up 22 | 1 18 3 Fast Attach 15 | 6 8 1 Attach 3 | . 1 2 Detach . | . . . Swap 20 | . 12 8 Drop 17 | . 7 10 Fire 88 | . 56 32 Melee . | . . . Ram . | . . . Kick . | . . . Crush . | . . . Escape Stasis . | . . . Rewire . | . . . Trap . | . . . Miscellaneous . | . . . Route ------- -11/Scrapyard -10/Materials (discovered 4 exits: [*Mat x2] / [*Min] / *Sub) -10/Subcaves History --------- Turn | Location | Event 13 | -11/Scrapyard | Discovered new exit (range 16) 40 | -11/Scrapyard | Entered Materials 315 | -10/Materials | Build established: Mutant 331 | -10/Materials | Discovered new exit (range 9) 410 | -10/Materials | Lost 4 parts (1p1n1u1w) 416 | -10/Materials | Discovered new exit (range 11) 574 | -10/Materials | Discovered new exit (range 7) 857 | -10/Materials | Discovered new exit (range 14) 1145 | -10/Materials | Entered Subcaves 1244 | -10/Subcaves | Core integrity fell below 50% 1377 | -10/Subcaves | Found SUBCON Basin 1434 | -10/Subcaves | Core integrity fell below 20% 1801 | -10/Subcaves | Learned location of Zion (-7) 1801 | -10/Subcaves | Met a Zionite searching for "candidates" 2111 | -10/Subcaves | Destroyed by CT-F0C(R) with Subdweller Shrapnel Launcher Last Messages --------------- might I suggest a trip to Zion?" World map updated: -7/Zion. 01846_ System corrupted: Matter fused (-8). 01911_ 43-IXJ(R) destroyed. 01921_ Dropped Assault Rifle. 01924_ Acquired 30 matter. 01927_ System corrupted: Energy discharge (-70). 01930_ R4-KGV(R) destroyed. 01934_ Acquired Sub. Beam Cannon. 01937_ Acquired Battle Rifle. 01943_ Subatomizers dissect the Assault Rifle. 01947_ Acquired 21 matter. 02037_ DRUTDBR%CL4/9H F4>&CNAOTPQ 02084_ Sub. Monowheel shoots sparks and powers down. 02086_ Dropped Broken Sub. Monowheel. 02099_ FB-J2W(R) destroyed. 02108_ The unstable cave ceiling collapses. 02110_ Sub. Beam Cannon shoots sparks and powers down. Map ----- +----------------------------------------------------+ | ?????????????????????????????????????????????????? | | ?????????????????????????????????????????????????? | | ?????????????????????????????????????????????????? | | ?????????????????????????????????????????????????? | | ?????????????????????????????????????????????????? | | ?????????????????????????????????????????????????? | | ?????????????????????????????????????????????????? | | ?????????????????????????????????????????????????? | | ?????????????????????????????????????????????????? | | ?????????????????????????????????????????????????? | | ?????????????????????????????????????????????????? | | ??????????????????????#??????????????????????????? | | ?????????????????????? ?????????????????????????? | | ??????????????????????< ?#??????? $??????????????? | | ?????????????????????? R? ?????? <#?????????????? | | ??????????????????????? ? #????# ??????????????? | | ??????????????????????? # ###? ???????????????? | | ??????????????????????? ## ##??????????????? | | ??????????????????????? % $$##?????????????? | | ????????????###????????? <#?????????????? | | ???????????## #####????? ??????????????? | | ??????????## # ## #????? &